bitfinex-derivatives/quotes_SOLF0:USTF0_20220110
["timestamp","ask_amount","ask_price","bid_price","bid_amount"]
[1641778313598,5.69376501,140.51,140.45,42.66508501]
[1641778314200,5.69376501,140.51,140.45,15.00029501]
[1641778314201,9.69376501,140.51,140.45,15.00029501]
[1641778314398,12.21796222,140.51,140.45,15.00029501]
[1641778314700,8.21796222,140.51,140.45,15.00029501]
[1641778315098,2.52419721,140.51,140.45,15.00029501]
[1641778315300,27.66479,140.52,140.45,2.51860126]
[1641778315999,2.52478203,140.51,140.45,2.51860126]
[1641778317902,11.40378203,140.51,140.45,2.51860126]
[1641778318304,11.40378203,140.51,140.46,1.61099684]
[1641778318805,8.879,140.51,140.47,2.51860126]
[1641778319807,2.52502692,140.5,140.47,2.51860126]
[1641778320408,8.879,140.51,140.47,2.51860126]
[1641778322809,8.879,140.51,140.47,2.01873181]
[1641778323210,27.66479,140.52,140.47,2.01873181]
[1641778323412,27.66479,140.52,140.48,2.51860126]
[1641778324111,2.5240887,140.51,140.48,2.51860126]
[1641778326016,4.04129521,140.5,140.48,2.51860126]
[1641778326416,4.04129521,140.5,140.48,4.12948222]
[1641778327518,4.04129521,140.5,140.49,2.51860126]
[1641778328317,4.04129521,140.5,140.48,1.61088096]
[1641778329617,27.66479,140.51,140.48,1.61088096]
[1641778329819,4.04074555,140.49,140.48,1.61088096]
[1641778330220,4.04074555,140.49,140.44,59.74289501]
[1641778331321,4.04074555,140.49,140.45,2.51812416]
[1641778333022,4.0,140.48,140.45,2.51812416]
[1641778333223,17.85500395,140.48,140.45,2.51812416]
[1641778333420,17.85500395,140.48,140.44,15.00029501]
[1641778333622,20.3799216,140.48,140.42,2.5187173]
[1641778333821,58.4721216,140.48,140.42,2.5187173]
[1641778334421,27.66479,140.47,140.42,2.5187173]
[1641778334822,27.66479,140.47,140.4,15.00029501]
[1641778335721,27.66479,140.47,140.39,10.07900277]
[1641778335722,27.66479,140.47,140.42,15.00029501]
[1641778336524,27.66479,140.47,140.41,42.66508501]
[1641778338127,31.70706993,140.47,140.41,15.00029501]
[1641778338926,4.04227993,140.47,140.4,15.00029501]
[1641778339126,4.04227993,140.47,140.4,16.78029501]
[1641778339528,4.04227993,140.47,140.4,20.78029501]
[1641778339727,4.04227993,140.47,140.42,15.00029501]
[1641778339927,4.04227993,140.47,140.42,23.12329501]
[1641778340530,4.04227993,140.47,140.44,27.66479]
[1641778341431,6.83241764,140.51,140.44,31.66479]
[1641778341632,15.00029501,140.53,140.46,4.0]
[1641778341833,15.00029501,140.53,140.46,6.167]
[1641778342030,54.04829501,140.55,140.46,7.945]
[1641778342732,81.71308501,140.55,140.46,7.945]
[1641778343034,66.71279,140.55,140.46,7.945]
[1641778344033,81.71308501,140.55,140.46,7.945]
[1641778344835,66.71279,140.55,140.46,7.945]
[1641778345841,66.71279,140.55,140.47,2.45940052]
[1641778346239,15.00029501,140.56,140.47,2.45940052]
[1641778346441,15.00029501,140.56,140.48,1.778]
[1641778346641,15.00029501,140.56,140.5,27.66479]
[1641778346841,15.00029501,140.56,140.5,9.404]
[1641778347041,15.00029501,140.57,140.5,9.404]
[1641778347842,88.55254819,140.58,140.5,9.404]
[1641778348143,88.55254819,140.58,140.47,40.90460052]
[1641778348144,88.55254819,140.58,140.48,1.778]
[1641778348342,92.55254819,140.58,140.47,40.90460052]
[1641778348542,27.66479,140.55,140.47,40.90460052]
[1641778348843,37.35686516,140.55,140.47,2.45940052]
[1641778349143,9.69289488,140.53,140.47,2.45940052]
[1641778349344,4.0,140.52,140.47,2.45940052]
[1641778349543,4.0,140.52,140.43,39.0773]
[1641778349743,4.0,140.52,140.47,2.45939298]
[1641778350144,9.69289488,140.53,140.47,2.45939298]
[1641778350349,5.69289488,140.53,140.47,2.45939298]
[1641778350545,27.66479,140.52,140.47,2.45939298]
[1641778353747,27.66479,140.52,140.43,66.74209]
[1641778354548,27.66479,140.52,140.48,2.46035385]
[1641778356848,55.32958,140.52,140.48,2.46035385]
[1641778357047,4.04188101,140.51,140.48,2.46035385]
[1641778358049,4.04188101,140.51,140.43,39.0773]
[1641778358248,4.04188101,140.51,140.44,2.46047996]
[1641778358849,27.66479,140.49,140.44,2.46047996]
[1641778362052,4.04208467,140.5,140.44,2.46047996]
[1641778362253,4.04208467,140.5,140.43,39.0773]
[1641778362452,4.04208467,140.5,140.45,2.46077251]
[1641778362854,27.66479,140.49,140.45,2.46077251]
[1641778365361,4.04213958,140.48,140.45,2.46077251]
[1641778365559,10.34313958,140.48,140.45,2.46077251]
[1641778366058,10.34313958,140.48,140.43,39.0773]
[1641778367460,10.34313958,140.48,140.46,2.46077456]
[1641778369261,6.301,140.48,140.46,2.46077456]
[1641778369463,4.04212835,140.47,140.46,2.46077456]
[1641778370465,4.04212835,140.47,140.41,15.00029501]
[1641778370862,27.66479,140.45,140.41,15.00029501]
[1641778371064,36.98679,140.45,140.41,15.00029501]
[1641778371564,36.98679,140.45,140.4,48.37819501]
[1641778373769,36.98679,140.45,140.41,2.51369511]
[1641778375572,9.322,140.45,140.41,2.51369511]
[1641778375770,9.322,140.45,140.42,2.4366314]
[1641778376571,4.04236639,140.47,140.42,2.4366314]
[1641778377071,27.66479,140.44,140.43,2.51369511]
[1641778377273,34.47079,140.44,140.43,2.51369511]
[1641778377873,38.51343662,140.44,140.43,2.51369511]
[1641778380479,10.84864662,140.44,140.43,15.00029501]
[1641778380680,4.04264662,140.44,140.43,15.00029501]
[1641778381078,4.04264662,140.44,140.43,2.51369511]
[1641778381879,8.083,140.44,140.43,2.51369511]
[1641778382082,12.12562873,140.44,140.43,2.51369511]
[1641778382883,12.12562873,140.44,140.42,15.00029501]
[1641778383180,27.66479,140.43,140.39,39.54629395]
[1641778383380,5.69734122,140.42,140.39,39.54629395]
[1641778383581,5.69734122,140.42,140.39,15.14413787]
[1641778384582,27.66479,140.43,140.39,15.14413787]
[1641778384785,27.66479,140.43,140.36,35.4115]
[1641778390491,4.04424277,140.42,140.36,35.4115]
[1641778391192,12.71124277,140.42,140.36,35.4115]
[1641778392992,27.66479,140.4,140.36,35.4115]
[1641778393192,27.66479,140.4,140.32,61.03053314]
[1641778393392,27.66479,140.4,140.32,94.97333314]
[1641778393592,27.66479,140.4,140.32,98.97333314]
[1641778393993,27.66479,140.4,140.32,89.27238]
[1641778395295,27.66479,140.4,140.32,93.27238]
[1641778395494,27.66479,140.4,140.32,89.27238]
[1641778396196,4.04394283,140.41,140.32,93.27238]
[1641778396394,4.04394283,140.41,140.33,1.78]
[1641778397797,4.04394283,140.41,140.32,89.27238]
[1641778398099,4.04394283,140.41,140.33,1.78]
[1641778398597,43.3164,140.42,140.33,1.78]
[1641778398798,4.04414856,140.39,140.32,95.05238]
[1641778398997,10.73714856,140.39,140.32,95.05238]
[1641778399197,10.73714856,140.39,140.32,93.27238]
[1641778399498,10.73714856,140.39,140.33,1.43423778]
[1641778400503,4.04414856,140.39,140.36,4.0]
[1641778401100,4.04414856,140.39,140.38,27.66479]
[1641778401300,4.04414856,140.39,140.38,34.87879]
[1641778403006,59.98459,140.45,140.38,34.87879]
[1641778403205,59.98459,140.45,140.38,27.66479]
[1641778403710,63.98459,140.45,140.38,27.66479]
[1641778403906,69.68085048,140.45,140.35,10.04269836]
[1641778404107,69.68085048,140.45,140.36,32.233]
[1641778404309,65.68085048,140.45,140.36,32.233]
[1641778404909,69.68085048,140.45,140.36,32.233]
[1641778405107,27.66479,140.42,140.36,32.233]
[1641778405307,33.55279,140.42,140.36,32.233]
[1641778408113,33.55279,140.42,140.36,33.66677246]
[1641778408512,5.888,140.42,140.36,33.66677246]
[1641778408712,65.68085048,140.45,140.36,33.66677246]
[1641778411017,65.68085048,140.45,140.37,10.08142507]
[1641778411215,59.98459,140.45,140.37,10.08142507]
[1641778411818,59.98459,140.45,140.37,11.51516274]
[1641778413924,59.98459,140.45,140.37,26.65391434]
[1641778414722,59.98459,140.45,140.37,30.65391434]
[1641778415924,59.98459,140.45,140.38,1.43350352]
[1641778416325,27.66479,140.45,140.38,1.43350352]
[1641778416524,42.8035416,140.46,140.38,1.43350352]
[1641778417225,42.8035416,140.46,140.38,29.09829352]
[1641778417926,27.66479,140.46,140.38,44.23704512]
[1641778418126,25.9387516,140.47,140.38,16.57225512]
[1641778418327,4.04334365,140.44,140.38,16.57225512]
[1641778419225,4.04334365,140.44,140.38,44.23704512]
[1641778419727,36.32514365,140.44,140.38,29.09829352]
[1641778419927,36.32514365,140.44,140.38,27.66479]
[1641778420127,36.32514365,140.44,140.39,1.43310432]
[1641778422131,32.2818,140.44,140.39,1.43310432]
[1641778422431,4.04300313,140.43,140.39,1.43310432]
[1641778422931,4.04300313,140.43,140.39,26.64275068]
[1641778423631,4.04300313,140.43,140.39,25.20964636]
[1641778423832,4.04300313,140.43,140.4,2.51605104]
[1641778424533,4.04300313,140.43,140.39,2.51605104]
[1641778424734,4.04300313,140.43,140.4,5.43326614]
[1641778424934,4.04300313,140.43,140.4,16.51926614]
[1641778425136,15.1387516,140.48,140.41,6.51605104]
[1641778425344,15.1387516,140.48,140.41,39.59955104]
[1641778425540,15.1387516,140.48,140.43,27.66479]
[1641778425736,15.1387516,140.48,140.43,33.52879]
[1641778426337,33.7401,140.5,140.43,33.52879]
[1641778426338,2.5247209,140.49,140.43,33.52879]
[1641778427336,2.5247209,140.49,140.44,2.51605104]
[1641778428038,8.21908935,140.49,140.44,2.51605104]
[1641778429039,2.5247209,140.48,140.42,2.51605104]
[1641778429239,2.5247209,140.48,140.42,6.51605104]
[1641778429438,2.5247209,140.48,140.42,2.51605104]
[1641778429843,2.5247209,140.48,140.41,62.18116205]
[1641778430040,2.5247209,140.48,140.42,1.78]
[1641778430238,2.5247209,140.48,140.42,11.61]
[1641778430440,2.5247209,140.48,140.44,4.0]
[1641778430644,2.5247209,140.49,140.43,2.51337392]
[1641778430840,2.5247209,140.49,140.45,4.0]
[1641778431144,2.5247209,140.49,140.47,4.0]
[1641778431344,15.1387516,140.51,140.46,7.47348069]
[1641778431540,15.1387516,140.51,140.48,4.0]
[1641778431842,2.52303333,140.51,140.5,27.66479]
[1641778432041,6.033,140.53,140.5,27.66479]
[1641778432241,40.1841849,140.56,140.52,4.0]
[1641778432542,40.1841849,140.56,140.52,7.122]
[1641778432740,40.1841849,140.56,140.52,11.122]
[1641778432942,36.06848066,140.56,140.53,4.0]
[1641778433142,60.27627735,140.6,140.55,4.0]
[1641778433341,60.27627735,140.6,140.56,4.0]
[1641778433544,36.06848066,140.63,140.57,1.778]
[1641778433743,36.06848066,140.63,140.58,27.66479]
[1641778434545,36.06848066,140.63,140.56,27.66479]
[1641778434945,27.66479,140.65,140.56,27.66479]
[1641778435547,4.0,140.63,140.56,27.66479]
[1641778436749,4.0,140.64,140.56,27.66479]
[1641778437449,31.66479,140.65,140.56,27.66479]
[1641778437749,27.66479,140.62,140.56,27.66479]
[1641778438149,27.66479,140.65,140.56,27.66479]
[1641778438350,27.66479,140.65,140.56,35.88679]
[1641778438653,27.66479,140.65,140.57,2.27781739]
[1641778438951,14.04809089,140.64,140.57,2.27781739]
[1641778439150,14.04809089,140.64,140.57,6.27781739]
[1641778439451,14.04809089,140.64,140.57,8.05581739]
[1641778439950,14.04809089,140.64,140.6,27.66479]
[1641778440150,14.04809089,140.64,140.6,35.52979]
[1641778441351,14.04809089,140.64,140.6,39.52979]
[1641778441751,14.04809089,140.64,140.6,35.52979]
[1641778442153,4.03886678,140.61,140.6,35.52979]
[1641778443352,4.03886678,140.61,140.58,4.05565491]
[1641778443552,4.03886678,140.61,140.58,2.27765491]
[1641778445654,4.03886678,140.61,140.58,13.74631003]
[1641778445951,4.03886678,140.61,140.6,27.66479]
[1641778446153,4.03886678,140.61,140.6,29.44279]
[1641778446353,36.2988,140.67,140.6,29.44279]
[1641778446554,4.03785947,140.61,140.6,29.44279]
[1641778446854,10.76,140.69,140.6,29.44279]
[1641778446855,4.0,140.69,140.6,33.35459327]
[1641778447054,4.0,140.69,140.6,40.34859327]
[1641778447255,4.0,140.69,140.6,34.65879]
[1641778447457,14.04681535,140.66,140.6,34.65879]
[1641778448555,14.04681535,140.66,140.6,36.43479]
[1641778449357,14.04681535,140.66,140.63,4.0]
[1641778449556,14.04681535,140.66,140.64,4.0]
[1641778449957,14.04681535,140.66,140.65,55.32958]
[1641778451359,34.6044,140.73,140.65,55.32958]
[1641778455769,34.6044,140.73,140.65,59.32958]
[1641778455968,9.60067751,140.72,140.65,59.32958]
[1641778456768,9.60067751,140.72,140.66,3.12327934]
[1641778456972,9.60067751,140.72,140.66,10.90427934]
[1641778457370,9.60067751,140.72,140.66,14.90427934]
[1641778458073,9.60067751,140.72,140.66,16.68027934]
[1641778458971,9.60067751,140.72,140.66,12.68027934]
[1641778459172,4.0,140.71,140.66,3.12327934]
[1641778459371,9.967,140.71,140.66,3.12327934]
[1641778460173,4.0,140.7,140.66,3.12327934]
[1641778460373,27.66479,140.69,140.66,3.12327934]
[1641778460773,27.66479,140.69,140.61,29.44079]
[1641778461174,27.66479,140.69,140.67,3.12304858]
[1641778465181,27.66479,140.69,140.61,29.44079]
[1641778465378,27.66479,140.69,140.62,3.12438518]
[1641778466178,4.03688611,140.68,140.62,3.12438518]
[1641778469481,4.03688611,140.68,140.63,3.12414346]
[1641778469682,4.03688611,140.68,140.63,9.47614346]
[1641778470284,27.66479,140.69,140.63,9.47614346]
[1641778470483,4.03692001,140.67,140.63,9.47614346]
[1641778472084,4.03692001,140.67,140.63,3.12414346]
[1641778473383,27.66479,140.66,140.59,60.50409]
[1641778473585,33.54179,140.66,140.59,60.50409]
[1641778473782,33.54179,140.66,140.64,3.12404239]
[1641778474783,37.57862812,140.66,140.64,3.12404239]
[1641778474985,2.51787082,140.65,140.64,3.12404239]
[1641778475684,2.51787082,140.65,140.59,60.50409]
[1641778475886,2.51787082,140.65,140.59,27.66479]
[1641778476586,6.51787082,140.65,140.59,27.66479]
[1641778476791,2.51787082,140.65,140.59,27.66479]
[1641778476987,17.54661737,140.65,140.59,27.66479]
[1641778478390,38.24493812,140.66,140.59,29.44079]
[1641778478587,38.24493812,140.66,140.59,27.66479]
[1641778478787,4.03761166,140.65,140.59,27.66479]
[1641778480190,17.07918934,140.65,140.59,27.66479]
[1641778481594,17.07918934,140.65,140.6,2.46868577]
[1641778481993,2.5164668,140.64,140.6,2.46868577]
[1641778482794,13.04157768,140.65,140.6,2.46868577]
[1641778482995,17.07909731,140.65,140.6,2.46868577]
[1641778483697,17.07909731,140.65,140.6,8.69168577]
[1641778484296,4.03751963,140.65,140.6,8.69168577]
[1641778485397,4.03751963,140.65,140.6,6.223]
[1641778485600,4.03751963,140.65,140.6,8.69197602]
[1641778486698,4.03751963,140.65,140.6,2.46897602]
[1641778486898,34.2081,140.66,140.6,2.46897602]
[1641778487299,4.03773902,140.64,140.6,2.46897602]
[1641778489402,4.03773902,140.64,140.59,55.32958]
[1641778489900,4.03773902,140.64,140.61,2.46851393]
[1641778490903,4.03773902,140.64,140.61,30.13330393]
[1641778491102,34.2081,140.66,140.61,30.13330393]
[1641778491502,4.03761141,140.65,140.61,30.13330393]
[1641778491902,6.55722442,140.65,140.61,30.13330393]
[1641778492902,4.03761141,140.65,140.61,30.13330393]
[1641778493505,4.03761141,140.65,140.61,2.46851393]
[1641778493705,2.52032897,140.64,140.61,2.46851393]
[1641778493905,2.52032897,140.64,140.59,27.66479]
[1641778494706,2.52032897,140.64,140.62,2.46850932]
[1641778494905,2.52032897,140.64,140.62,36.15229932]
[1641778495505,4.03761141,140.65,140.62,36.15229932]
[1641778495706,4.03732386,140.64,140.62,36.15229932]
[1641778496606,4.03732386,140.64,140.62,37.92829932]
[1641778496806,4.03732386,140.64,140.62,41.92829932]
[1641778497109,0.91328147,140.64,140.62,36.15229932]
[1641778497306,0.91328147,140.64,140.62,40.15229932]
[1641778497707,0.91328147,140.64,140.63,2.51339428]
[1641778497708,8.147e-05,140.64,140.63,2.51339428]
[1641778497908,8.147e-05,140.64,140.63,4.28939428]
[1641778499007,8.147e-05,140.64,140.63,31.95418428]
[1641778499708,17.548478,140.7,140.63,34.42240153]
[1641778500309,17.548478,140.7,140.63,2.46821725]
[1641778500509,23.23467215,140.7,140.63,2.46821725]
[1641778500710,27.23467215,140.7,140.63,2.46821725]
[1641778500913,23.23467215,140.7,140.63,2.46821725]
[1641778501111,27.66479,140.67,140.63,2.46821725]
[1641778502711,2.51973145,140.66,140.63,2.46821725]
[1641778503312,17.548478,140.69,140.63,2.46821725]
[1641778503514,17.548478,140.69,140.63,10.08321725]
[1641778503913,17.548478,140.7,140.63,10.92127628]
[1641778504313,21.548478,140.7,140.63,10.92127628]
[1641778504712,9.60280754,140.69,140.63,3.30627628]
[1641778505112,37.26759754,140.69,140.63,3.30627628]
[1641778505613,2.51973145,140.68,140.63,3.30627628]
[1641778505812,6.51973145,140.68,140.63,3.30627628]
[1641778506014,2.51973145,140.68,140.63,3.30627628]
[1641778506414,2.51973145,140.67,140.63,3.30627628]
[1641778506814,2.51973145,140.68,140.63,3.30627628]
[1641778507013,17.548478,140.68,140.63,3.30627628]
[1641778507613,11.11262847,140.67,140.59,1.776]
[1641778507814,11.11262847,140.67,140.59,15.02874655]
[1641778508415,15.02874655,140.65,140.64,3.13304757]
[1641778509115,2.51973145,140.66,140.64,3.13304757]
[1641778509916,2.51973145,140.67,140.64,3.13304757]
[1641778510117,17.61232096,140.67,140.64,3.13304757]
[1641778510417,4.0,140.66,140.64,3.13304757]
[1641778510618,4.0,140.66,140.57,23.91459369]
[1641778510818,36.4838,140.65,140.57,23.91459369]
[1641778511218,36.4838,140.65,140.57,27.91459369]
[1641778511417,36.4838,140.65,140.58,2.51216743]
[1641778511716,27.66479,140.66,140.58,2.51216743]
[1641778512618,27.66479,140.66,140.6,2.62246005]
[1641778512819,2.5190493,140.65,140.6,2.62246005]
[1641778514519,2.5190493,140.65,140.61,1.776]
[1641778514720,23.69213433,140.67,140.61,9.122]
[1641778514922,8.59954482,140.67,140.61,11.63428084]
[1641778515225,4.03755645,140.64,140.61,11.63428084]
[1641778515421,4.03755645,140.64,140.62,31.66479]
[1641778515621,0.90450888,140.64,140.62,29.44079]
[1641778515823,8.88e-06,140.64,140.62,29.44079]
[1641778516022,8.88e-06,140.64,140.62,31.95307084]
[1641778516223,8.88e-06,140.64,140.62,37.64186351]
[1641778516422,8.88e-06,140.64,140.62,41.64186351]
[1641778517122,8.88e-06,140.64,140.63,4.0]
[1641778517324,15.09258951,140.71,140.64,5.68805105]
[1641778517523,39.82502396,140.75,140.68,4.0]
[1641778517724,39.82502396,140.75,140.7,7.10302944]
[1641778518024,39.82502396,140.75,140.7,27.10302944]
[1641778518223,39.82502396,140.75,140.72,4.0]
[1641778518425,12.57452533,140.79,140.72,12.559]
[1641778519025,12.57452533,140.79,140.73,1.776]
[1641778519428,12.57452533,140.79,140.75,27.66479]
[1641778519628,2.5155762,140.79,140.75,39.10679]
[1641778520027,2.5155762,140.79,140.76,1.774]
[1641778520629,27.66479,140.82,140.76,1.774]
[1641778522128,27.66479,140.82,140.75,7.442]
[1641778522930,27.66479,140.82,140.74,1.774]
[1641778523130,27.66479,140.82,140.73,1.774]
[1641778523729,27.66479,140.82,140.72,29.43879]
[1641778524529,27.66479,140.82,140.72,33.43879]
[1641778524931,27.66479,140.82,140.73,9.68441964]
[1641778525131,27.66479,140.82,140.74,1.774]
[1641778526536,11.23373191,140.81,140.74,1.774]
[1641778527735,11.23373191,140.81,140.74,4.58235214]
[1641778527933,11.23373191,140.81,140.74,2.80835214]
[1641778529635,27.66479,140.79,140.74,2.80835214]
[1641778530236,11.23373191,140.81,140.74,2.80835214]
[1641778530436,11.23373191,140.81,140.74,9.36435214]
[1641778530935,4.0,140.86,140.74,9.36435214]
[1641778530936,4.0,140.86,140.75,1.774]
[1641778531137,11.23402552,140.8,140.75,1.774]
[1641778531538,11.23402552,140.8,140.75,7.4577213]
[1641778531737,11.23402552,140.8,140.75,35.1225113]
[1641778532336,11.23402552,140.8,140.75,7.4577213]
[1641778533238,11.23402552,140.8,140.75,11.4577213]
[1641778533839,11.23402552,140.8,140.75,7.4577213]
[1641778534242,11.23402552,140.8,140.75,1.774]
[1641778534643,11.23402552,140.8,140.75,2.80839095]
[1641778535342,15.26726842,140.8,140.75,2.80839095]
[1641778535544,4.0332429,140.8,140.75,2.80839095]
[1641778536143,4.0332429,140.8,140.75,6.80839095]
[1641778536341,4.0332429,140.8,140.76,1.774]
[1641778536545,4.0332429,140.8,140.76,8.956]
[1641778538943,4.0332429,140.8,140.76,11.76431738]
[1641778539343,4.0332429,140.8,140.76,17.44740018]
[1641778539544,27.66479,140.85,140.76,17.44740018]
[1641778539744,4.03371374,140.79,140.76,45.11219018]
[1641778540646,4.03371374,140.79,140.76,49.11219018]
[1641778540947,4.03371374,140.79,140.76,45.11219018]
[1641778541546,4.03371374,140.79,140.77,4.0]
[1641778541748,27.66479,140.85,140.78,1.774]
[1641778544053,27.66479,140.85,140.77,11.68137141]
[1641778544650,4.0328552,140.78,140.77,11.68137141]
[1641778544851,27.66479,140.85,140.77,11.68137141]
[1641778545050,2.50763982,140.84,140.77,11.68137141]
[1641778545450,2.50763982,140.84,140.77,17.36420555]
[1641778545951,4.0,140.83,140.77,4.5816199]
[1641778546151,4.0,140.83,140.77,2.8076199]
[1641778546351,10.06263982,140.84,140.77,2.8076199]
[1641778546754,2.50763982,140.82,140.77,2.8076199]
[1641778547553,2.50763982,140.82,140.74,25.774]
[1641778547753,42.74139384,140.81,140.79,3.75831106]
[1641778548656,2.50763982,140.8,140.79,3.75831106]
[1641778548858,6.50763982,140.8,140.74,1.774]
[1641778549058,6.50763982,140.8,140.72,1.774]
[1641778549458,2.50763982,140.8,140.72,1.774]
[1641778549758,27.66479,140.77,140.72,1.774]
[1641778549958,27.66479,140.77,140.71,8.59854007]
[1641778550158,17.58424366,140.79,140.71,8.59854007]
[1641778550357,17.58424366,140.79,140.71,17.72154007]
[1641778550659,2.50763982,140.76,140.71,17.72154007]
[1641778550857,2.50763982,140.76,140.71,21.72154007]
[1641778551058,2.50763982,140.76,140.72,4.0]
[1641778551258,2.50763982,140.76,140.73,7.460537]
[1641778551460,15.07660384,140.79,140.73,7.460537]
[1641778552461,2.50763982,140.8,140.73,7.460537]
[1641778553262,17.58424366,140.8,140.73,7.460537]
[1641778553464,23.50626251,140.8,140.73,7.460537]
[1641778554763,2.50763982,140.79,140.73,7.460537]
[1641778557867,5.98183188,140.79,140.73,7.460537]
[1641778558871,2.50763982,140.78,140.74,4.03385318]
[1641778561075,8.89963982,140.78,140.71,1.776]
[1641778561272,12.89963982,140.78,140.68,1.776]
[1641778561473,4.0,140.77,140.67,44.51739384]
[1641778561673,4.0,140.76,140.67,42.74139384]
[1641778561873,12.89963982,140.78,140.67,42.74139384]
[1641778562075,15.07660384,140.76,140.67,27.66479]
[1641778562276,42.74139384,140.76,140.67,27.66479]
[1641778563174,2.50763982,140.75,140.68,8.28516339]
[1641778563374,2.50763982,140.75,140.68,12.97016339]
[1641778563674,27.66479,140.76,140.68,12.97016339]
[1641778563875,27.66479,140.76,140.69,2.50916339]
[1641778565776,31.66479,140.76,140.69,2.50916339]
[1641778565977,4.0,140.74,140.69,2.50916339]
[1641778566175,4.0,140.73,140.69,2.50916339]
[1641778566375,6.933,140.74,140.68,3.67390147]
[1641778566376,27.66479,140.7,140.68,3.67390147]
[1641778566575,36.04679,140.7,140.68,3.67390147]
[1641778567676,27.66479,140.7,140.68,3.67390147]
[1641778568276,27.66479,140.7,140.63,9.96714795]
[1641778568478,27.66479,140.7,140.63,4.0]
[1641778568678,27.66479,140.7,140.62,15.07660384]
[1641778568879,27.66479,140.7,140.63,1.776]
[1641778569078,27.66479,140.7,140.63,8.019]
[1641778569681,27.66479,140.7,140.64,2.50514303]
[1641778570480,27.66479,140.7,140.63,2.50514303]
[1641778571583,33.34997476,140.72,140.63,2.50514303]
[1641778571584,4.03565307,140.69,140.63,2.50514303]
[1641778573687,11.22065307,140.69,140.64,2.13326612]
[1641778574786,4.03565307,140.69,140.64,10.23526612]
[1641778575687,27.66479,140.71,140.64,10.23526612]
[1641778575886,27.66479,140.71,140.65,2.50494685]
[1641778576086,4.03595763,140.68,140.65,2.50494685]
[1641778576687,4.03595763,140.68,140.64,2.13326612]
[1641778577388,4.03595763,140.68,140.65,2.5050274]
[1641778578188,4.03595763,140.68,140.65,4.0]
[1641778578390,4.03595763,140.68,140.64,11.02475251]
[1641778578590,4.03595763,140.68,140.65,1.776]
[1641778578992,4.03595763,140.68,140.65,4.2810274]
[1641778579393,4.03595763,140.68,140.66,5.68747254]
[1641778579692,4.03595763,140.68,140.66,8.19249994]
[1641778579892,27.66479,140.71,140.66,8.19249994]
[1641778580092,4.03560534,140.67,140.66,8.19249994]
[1641778580494,4.03560534,140.67,140.66,5.68747254]
[1641778582495,4.03560534,140.67,140.66,7.78358682]
[1641778584195,27.66479,140.71,140.66,7.78358682]
[1641778584397,4.03535093,140.7,140.66,7.78358682]
[1641778586197,4.03535093,140.7,140.68,4.0]
[1641778586398,4.03535093,140.7,140.69,1.776]
[1641778586599,4.03535093,140.7,140.67,7.46284469]
[1641778586800,4.03535093,140.7,140.67,11.46284469]
[1641778587001,4.03535093,140.7,140.67,39.12763469]
[1641778587903,4.03535093,140.7,140.67,35.12763469]
[1641778588104,4.03535093,140.7,140.68,2.50912331]
[1641778588404,27.66479,140.75,140.68,2.50912331]
[1641778589004,4.03557019,140.69,140.68,2.50912331]
[1641778590806,4.03557019,140.69,140.68,4.60486987]
[1641778591807,4.03557019,140.69,140.68,6.38086987]
[1641778592709,4.03557019,140.69,140.68,4.60486987]
[1641778593111,31.69977993,140.74,140.68,4.60486987]
[1641778594312,31.69977993,140.74,140.69,2.50912331]
[1641778595614,31.69977993,140.74,140.68,4.60477748]
[1641778596714,31.69977993,140.74,140.69,2.50912331]
[1641778596912,27.66479,140.74,140.69,2.50912331]
[1641778597514,4.03489207,140.73,140.69,2.50912331]
[1641778598912,4.03489207,140.73,140.7,2.09545227]
[1641778601417,2.87249207,140.73,140.71,27.66479]
[1641778601716,15.07660384,140.77,140.72,7.46083581]
[1641778601916,15.07660384,140.78,140.72,7.46083581]
[1641778602116,15.07660384,140.78,140.72,1.776]
[1641778602316,11.10782572,140.76,140.7,2.09545227]
[1641778602518,4.0,140.73,140.7,5.227e-05]
[1641778602716,4.0,140.71,140.7,5.227e-05]
[1641778602916,4.0,140.71,140.65,5.611e-05]
[1641778603118,15.68534167,140.73,140.65,5.611e-05]
[1641778603318,55.32958,140.66,140.65,5.611e-05]
[1641778603518,64.21658,140.66,140.65,5.611e-05]
[1641778604318,64.21658,140.66,140.64,10.05331876]
[1641778604520,19.07660384,140.71,140.61,4.00005611]
[1641778604717,19.07660384,140.71,140.61,20.54962923]
[1641778605018,19.07660384,140.71,140.61,16.54962923]
[1641778605217,19.07660384,140.71,140.61,9.44205611]
[1641778605420,27.66479,140.68,140.61,9.442]